fUSD/lending_fUSD_20260130
["ID","MTS","AMOUNT","RATE_DAILY","PERIOD"]
[404051173,1769778051007,-150.0,0.00047483,30]
[404051174,1769778051068,-556.23466386,0.000475,120]
[404051175,1769778051127,-250.0,0.000475,120]
[404051176,1769778051185,-150.0,0.00047526,30]
[404051177,1769778051243,-181.66358923,0.00047551,30]
[404051178,1769778051301,-310.95517548,0.00047551,30]
[404051179,1769778051363,-150.0,0.00047566,30]
[404051180,1769778051428,-150.0,0.00047569,30]
[404051181,1769778051492,-150.0,0.00047569,30]
[404051182,1769778051560,-150.0,0.00047576,30]
[404051183,1769778051627,-150.0,0.00047616,30]
[404051184,1769778051694,-1573.41,0.00047616,120]
[404051185,1769778051761,-181.66358923,0.00047627,30]
[404051186,1769778051822,-310.95517548,0.00047627,30]
[404051187,1769778051885,-254.18244674,0.00047642,30]
[404051188,1769778051946,-150.0,0.00047642,30]
[404051189,1769778052007,-195.44573541,0.00047642,30]
[404051190,1769778052064,-150.0,0.00047642,30]
[404051191,1769778052123,-1151.48828329,0.00047642,30]
[404051192,1769778052180,-150.0,0.00047653,30]
[404051193,1769778052235,-150.0,0.00047658,30]
[404051194,1769778052290,-150.0,0.00047658,30]
[404051195,1769778052344,-150.0,0.00047669,30]
[404051196,1769778052403,-181.66358923,0.00047703,30]
[404051197,1769778052459,-310.95517548,0.00047703,30]
[404051198,1769778052517,-150.0,0.00047706,30]
[404051199,1769778052579,-150.0,0.0004774,30]
[404051200,1769778052648,-2500.0,0.00047743,60]
[404051201,1769778052713,-150.0,0.00047747,30]
[404051202,1769778052776,-150.0,0.00047747,30]
[404051203,1769778052840,-150.0,0.00047762,30]
[404051204,1769778052904,-181.66358923,0.00047779,30]
[404051205,1769778052966,-310.95517548,0.00047779,30]
[404051206,1769778053028,-150.0,0.00047795,30]
[404051207,1769778053089,-150.0,0.00047826,30]
[404051208,1769778053151,-150.0,0.00047835,30]
[404051209,1769778053211,-150.0,0.00047835,30]
[404051210,1769778053269,-150.0,0.00047855,30]
[404051211,1769778053332,-181.66358923,0.00047855,30]
[404051212,1769778053397,-310.95517548,0.00047855,30]
[404051213,1769778053461,-150.0,0.00047885,30]
[404051214,1769778053524,-151.0,0.000479,120]
[404051215,1769778053590,-150.0,0.00047913,30]
[404051216,1769778053658,-150.0,0.00047924,30]
[404051217,1769778053724,-150.0,0.00047924,30]
[404051218,1769778053787,-181.66358923,0.00047931,30]
[404051219,1769778053853,-310.95517548,0.00047931,30]
[404051220,1769778053919,-150.0,0.00047948,30]
[404051221,1769778053984,-150.0,0.00047975,30]
[404051222,1769778054049,-150.0,0.00047999,30]
[404051223,1769778054112,-206.95365738,0.00048,120]
[404051224,1769778054177,-500.0,0.00048,120]
[404051225,1769778054241,-150.0,0.00048,120]
[404051226,1769778054305,-903.47801379,0.00048,120]
[404051227,1769778054368,-1106.34347416,0.00048,120]
[404051228,1769778054433,-1266.34109231,0.00048,120]
[404051229,1769778054496,-181.66358923,0.00048007,30]
[404051230,1769778054560,-310.95517548,0.00048007,30]
[404051231,1769778054625,-150.0,0.00048013,30]
[404051232,1769778054694,-150.0,0.00048013,30]
[404051233,1769778054757,-150.0,0.00048041,30]
[404051234,1769778054819,-150.0,0.00048064,30]
[404051235,1769778054881,-150.0,0.00048064,30]
[404051236,1769778054947,-181.66358923,0.00048083,30]
[404051237,1769778055013,-310.95517548,0.00048083,30]
[404051238,1769778055077,-150.0,0.00048086,30]
[404051239,1769778055140,-153.0,0.000481,120]
[404051240,1769778055203,-150.0,0.00048101,30]
[404051241,1769778055268,-150.0,0.00048101,30]
[404051242,1769778055335,-150.0,0.00048134,30]
[404051243,1769778055397,-150.0,0.00048154,30]
[404051244,1769778055638,-181.66358923,0.0004816,30]
[404051245,1769778055711,-310.95517548,0.0004816,30]
[404051246,1769778055776,-150.0,0.00048173,30]
[404051247,1769778055841,-150.0,0.0004819,30]
[404051248,1769778055904,-150.0,0.0004819,30]
[404051249,1769778055968,-1025.09,0.00048219,120]
[404051250,1769778056030,-150.0,0.00048227,30]
[404051251,1769778056095,-181.66358923,0.00048236,30]
[404051252,1769778056159,-310.95517548,0.00048236,30]
[404051253,1769778056226,-150.0,0.00048244,30]
[404051254,1769778056291,-150.0,0.00048258,30]
[404051255,1769778056356,-150.0,0.00048258,30]
[404051256,1769778056421,-150.0,0.00048258,30]
[404051257,1769778056485,-150.0,0.00048258,30]
[404051258,1769778056551,-150.0,0.00048258,30]
[404051259,1769778056619,-1233.02,0.00048258,30]
[404051260,1769778056688,-150.0,0.00048259,30]
[404051261,1769778056754,-150.0,0.00048279,30]
[404051262,1769778056820,-150.0,0.00048279,30]
[404051263,1769778056887,-172.27,0.00048281,30]
[404051264,1769778056951,-239.16,0.00048281,30]
[404051265,1769778057018,-1400.0,0.00048291,60]
[404051266,1769778057083,-2225.2,0.000483,90]
[404051267,1769778057144,-2220.96,0.000483,90]
[404051268,1769778057208,-181.66358923,0.00048312,30]
[404051269,1769778057272,-310.95517548,0.00048312,30]
[404051270,1769778057337,-225.35667207,0.00048316,30]
[404051271,1769778057403,-150.0,0.0004832,30]
[404051272,1769778057467,-150.0,0.00048334,30]
[404051273,1769778057531,-150.0,0.00048346,30]
[404051274,1769778057599,-150.0,0.00048367,30]
[404051275,1769778057668,-150.0,0.00048367,30]
[404051276,1769778057733,-150.0,0.00048378,30]
[404051277,1769778057800,-181.66358923,0.00048388,30]
[404051278,1769778057866,-310.95517548,0.00048388,30]
[404051279,1769778057935,-150.0,0.00048413,30]
[404051280,1769778057999,-150.0,0.00048423,30]
[404051281,1769778058064,-1573.41,0.00048432,120]
[404051282,1769778058126,-150.0,0.00048433,30]
[404051283,1769778058190,-150.0,0.00048456,30]
[404051284,1769778058251,-150.0,0.00048456,30]
[404051285,1769778058313,-181.66358923,0.00048464,30]
[404051286,1769778058376,-310.95517548,0.00048464,30]
[404051287,1769778058441,-151.0,0.000485,120]
[404051288,1769778058505,-7099.0835021,0.000485,120]
[404051289,1769778058569,-150.0,0.00048506,30]
[404051290,1769778058635,-150.0,0.00048513,30]
[404051291,1769778058699,-150.0,0.00048519,30]
[404051292,1769778058762,-181.66358923,0.0004854,30]
[404051293,1769778058827,-310.95517548,0.0004854,30]
[404051294,1769778058893,-150.0,0.00048545,30]
[404051295,1769778058959,-150.0,0.00048545,30]
[404051296,1769778059025,-150.0,0.00048599,30]
[404051297,1769778059090,-150.0,0.00048603,30]
[404051298,1769778059158,-150.0,0.00048606,30]
[404051299,1769778059225,-181.66358923,0.00048616,30]
[404051300,1769778059293,-310.95517548,0.00048616,30]
[404051301,1769778059361,-150.0,0.00048633,30]
[404051302,1769778059429,-150.0,0.00048633,30]
[404051303,1769778059493,-150.0,0.00048692,30]
[404051304,1769778059557,-150.0,0.00048692,30]
[404051305,1769778059622,-181.66358923,0.00048692,30]
[404051306,1769778059686,-150.0,0.00048692,30]
[404051307,1769778059749,-310.95517548,0.00048692,30]
[404051308,1769778059811,-150.0,0.00048692,30]
[404051309,1769778059876,-150.0,0.00048692,30]
[404051310,1769778059941,-236.03636429,0.000487,120]
[404051311,1769778060001,-150.0,0.00048722,30]
[404051312,1769778060065,-150.0,0.00048722,30]
[404051313,1769778060132,-150.0,0.0004874,120]
[404051314,1769778060200,-500.0,0.00048767,120]
[404051315,1769778060272,-500.0,0.00048767,120]
[404051316,1769778060340,-500.0,0.00048767,120]
[404051317,1769778060407,-500.0,0.00048767,120]
[404051318,1769778060476,-500.0,0.00048767,120]
[404051319,1769778060544,-500.0,0.00048767,120]
[404051320,1769778060616,-500.0,0.00048767,120]
[404051321,1769778060683,-500.0,0.00048767,120]
[404051322,1769778060750,-500.0,0.00048767,120]
[404051323,1769778060814,-500.0,0.00048767,120]
[404051324,1769778060878,-211.27604754,0.00048767,120]
[404051325,1769778061134,-181.66358923,0.00048768,30]
[404051326,1769778061198,-310.95517548,0.00048768,30]
[404051327,1769778061260,-150.0,0.00048779,30]
[404051328,1769778061321,-150.0,0.00048782,30]
[404051329,1769778061388,-150.0,0.00048785,30]
[404051330,1769778061451,-2720.60453969,0.000488,120]
[404051331,1769778061517,-150.0,0.00048811,30]
[404051332,1769778061583,-150.0,0.00048811,30]
[404051333,1769778061653,-2500.0,0.00048839,60]
[404051334,1769778061721,-181.66358923,0.00048845,30]
[404051335,1769778061788,-310.95517548,0.00048845,30]
[404051336,1769778061855,-150.0,0.00048866,30]
[404051337,1769778061925,-150.0,0.00048872,30]
[404051338,1769778061994,-150.0,0.00048878,30]
[404051339,1769778062061,-392.38270397,0.0004888,120]
[404051340,1769778062128,-150.0,0.00048899,30]
[404051341,1769778062194,-150.0,0.00048899,30]
[404051342,1769778062258,-153.0,0.000489,120]
[404051343,1769778062323,-2114.86895499,0.000489,120]
[404051344,1769778062388,-181.66358923,0.00048921,30]
[404051345,1769778062455,-310.95517548,0.00048921,30]
[404051346,1769778062519,-150.0,0.00048952,30]
[404051347,1769778062586,-150.0,0.00048961,30]
[404051348,1769778062657,-2395.17098543,0.0004897,120]
[404051349,1769778062725,-150.0,0.00048971,30]
[404051350,1769778062791,-150.0,0.00048988,30]
[404051351,1769778062856,-150.0,0.00048988,30]
[404051352,1769778062918,-210.0,0.0004899,30]
[404051353,1769778062982,-181.66358923,0.00048997,30]
[404051354,1769778063046,-310.95517548,0.00048997,30]
[404051355,1769778063111,-235.07447064,0.00049,120]
[404051356,1769778063177,-178.27653989,0.00049,120]
[404051357,1769778063245,-1009.42804069,0.00049,120]
[404051358,1769778063312,-221.46155785,0.00049,120]
[404051359,1769778063380,-188.16087643,0.00049,90]
[404051360,1769778063448,-195.83838149,0.00049,120]
[404051361,1769778063514,-191.0,0.00049,120]
[404051362,1769778063582,-6801.44377059,0.00049,30]
[404051363,1769778063654,-1574.13179616,0.00049,120]
[404051364,1769778063723,-1000.0,0.00049,30]
[404051365,1769778063790,-503.0,0.00049031,30]
[404051366,1769778063857,-150.0,0.00049039,30]
[404051367,1769778063931,-1025.09,0.00049041,120]
[404051368,1769778064000,-150.0,0.00049051,30]
[404051369,1769778064069,-150.0,0.00049064,30]
[404051370,1769778064137,-181.66358923,0.00049073,30]
[404051371,1769778064205,-310.95517548,0.00049073,30]
[404051372,1769778064272,-150.0,0.00049076,30]
[404051373,1769778064340,-150.0,0.00049076,30]
[404051374,1769778064406,-422.46,0.0004908,30]
[404051375,1769778064472,-1233.02,0.0004908,30]
[404051376,1769778064541,-1233.02,0.0004908,30]
[404051377,1769778064609,-2466.04,0.0004908,30]
[404051378,1769778064679,-151.0,0.000491,120]
[404051379,1769778064747,-168.87114841,0.00049101,120]
[404051380,1769778064813,-150.0,0.00049125,30]
[404051381,1769778064881,-150.0,0.00049141,30]
[404051382,1769778064949,-208.55410935,0.00049142,120]
[404051383,1769778065023,-181.66358923,0.00049149,30]
[404051384,1769778065091,-310.95517548,0.00049149,30]
[404051385,1769778065158,-150.0,0.00049157,30]
[404051386,1769778065226,-150.0,0.00049165,30]
[404051387,1769778065292,-150.0,0.00049165,30]
[404051388,1769778065361,-150.0,0.00049212,30]
[404051389,1769778065431,-181.66358923,0.00049225,30]
[404051390,1769778065502,-310.95517548,0.00049225,30]
[404051391,1769778065569,-150.0,0.00049231,30]
[404051392,1769778065638,-1573.41,0.00049248,120]
[404051393,1769778065705,-150.0,0.0004925,30]
[404051394,1769778065772,-150.0,0.00049254,30]
[404051395,1769778065841,-150.0,0.00049254,30]
[404051396,1769778065909,-150.0,0.00049299,30]
[404051397,1769778065979,-1835.68903006,0.000493,120]
[404051398,1769778066052,-181.66358923,0.00049301,30]
[404051399,1769778066120,-310.95517548,0.00049301,30]
[404051400,1769778066188,-150.0,0.00049315,120]
[404051401,1769778066255,-150.0,0.0004932,30]
[404051402,1769778066326,-150.0,0.0004932,30]
[404051403,1769778066396,-150.0,0.0004932,30]
[404051404,1769778066468,-150.0,0.00049342,30]
[404051405,1769778066833,-150.0,0.00049342,30]
[404051406,1769778066904,-150.0,0.00049344,30]
[404051407,1769778066972,-201.93286098,0.00049347,60]
[404051408,1769778067044,-175.86645322,0.00049351,120]
[404051409,1769778067115,-181.66358923,0.00049377,30]
[404051410,1769778067184,-310.95517548,0.00049377,30]
[404051411,1769778067252,-150.0,0.00049385,30]
[404051412,1769778067323,-1400.0,0.00049387,60]
[404051413,1769778067390,-371.57,0.000494,90]
[404051414,1769778067460,-150.0,0.0004941,30]
[404051415,1769778067527,-150.0,0.00049431,30]
[404051416,1769778067599,-150.0,0.00049431,30]
[404051417,1769778067671,-150.0,0.00049437,30]
[404051418,1769778067741,-181.66358923,0.00049453,30]
[404051419,1769778067811,-310.95517548,0.00049453,30]
[404051420,1769778067884,-150.0,0.00049472,30]
[404051421,1769778067955,-150.0,0.000495,30]
[404051422,1769778068024,-1364.45713355,0.000495,30]
[404051423,1769778068093,-1292.56385699,0.000495,120]
[404051424,1769778068162,-833.0,0.000495,120]
[404051425,1769778068234,-150.0,0.0004952,30]
[404051426,1769778068303,-150.0,0.0004952,30]
[404051427,1769778068373,-150.0,0.0004953,30]
[404051428,1769778068443,-181.66358923,0.0004953,30]
[404051429,1769778068514,-310.95517548,0.0004953,30]
[404051430,1769778068584,-150.0,0.00049558,30]
[404051431,1769778068660,-150.0,0.00049589,30]
[404051432,1769778068728,-153.0,0.000496,120]
[404051433,1769778068796,-2022.91,0.000496,90]
[404051434,1769778068866,-2019.05,0.000496,120]
[404051435,1769778068934,-181.66358923,0.00049606,30]
[404051436,1769778069003,-310.95517548,0.00049606,30]
[404051437,1769778069071,-150.0,0.00049608,30]
[404051438,1769778069140,-150.0,0.00049608,30]
[404051439,1769778069209,-171.93,0.00049613,120]
[404051440,1769778069278,-8609.46,0.00049613,120]
[404051441,1769778069348,-150.0,0.00049623,30]
[404051442,1769778069415,-150.0,0.00049645,30]
[404051443,1769778069482,-301.68,0.00049656,30]
[404051444,1769778069549,-150.0,0.00049656,30]
[404051445,1769778069616,-150.0,0.00049679,30]
[404051446,1769778069682,-181.66358923,0.00049682,30]
[404051447,1769778069750,-310.95517548,0.00049682,30]
[404051448,1769778069819,-150.0,0.00049697,30]
[404051449,1769778069887,-150.0,0.00049697,30]
[404051450,1769778069955,-151.0,0.000497,120]
[404051451,1769778070024,-94849.8012427,0.000497,120]
[404051452,1769778070091,-150.0,0.00049716,30]
[404051453,1769778070158,-150.0,0.00049732,30]
[404051454,1769778070227,-181.66358923,0.00049758,30]
[404051455,1769778070296,-310.95517548,0.00049758,30]
[404051456,1769778070365,-150.0,0.00049769,30]
[404051457,1769778070436,-150.0,0.00049786,30]
[404051458,1769778070521,-150.0,0.00049786,30]
[404051459,1769778070599,-820.38253093,0.00049799,120]
[404051460,1769778070670,-187.78006525,0.00049799,45]
[404051461,1769778070736,-194.72792766,0.00049799,50]
[404051462,1769778070801,-223.0315306,0.00049799,45]
[404051463,1769778070867,-347.47341299,0.00049799,50]
[404051464,1769778070932,-611.37760596,0.000498,120]
[404051465,1769778070999,-202409.88428591,0.000498,55]
[404051466,1769778071070,-907.11079789,0.000498,120]
[404051467,1769778071139,-2140.66371466,0.000498,120]
[404051468,1769778071206,-150.0,0.00049809,30]
[404051469,1769778071272,-150.0,0.00049818,30]
[404051470,1769778071336,-181.66358923,0.00049834,30]
[404051471,1769778071401,-310.95517548,0.00049834,30]
[404051472,1769778071465,-669.66920621,0.00049849,60]
[404051473,1769778071531,-150.0,0.00049858,30]
[404051474,1769778071599,-1025.09,0.00049863,120]
[404051475,1769778071668,-150.0,0.00049874,30]
[404051476,1769778071733,-150.0,0.00049874,30]
[404051477,1769778071799,-252.54473276,0.00049897,120]
[404051478,1769778071866,-1751.10622788,0.00049898,76]
[404051479,1769778071931,-228.43992143,0.000499,30]
[404051480,1769778071996,-877.49380519,0.000499,30]
[404051481,1769778072060,-1000.0,0.000499,120]
[404051482,1769778072130,-150.0,0.00049902,30]
[404051483,1769778072196,-150.0,0.00049905,30]
[404051484,1769778072263,-181.66358923,0.0004991,30]
[404051485,1769778072513,-310.95517548,0.0004991,30]
[404051486,1769778072586,-2500.0,0.00049935,60]
[404051487,1769778072659,-150.0,0.00049948,30]
[404051488,1769778072727,-150.0,0.00049948,30]
[404051489,1769778072795,-150.0,0.00049948,30]
[404051490,1769778072862,-150.0,0.00049963,30]
[404051491,1769778072930,-150.0,0.00049963,30]
[404051492,1769778072997,-150.0,0.00049963,120]
[404051493,1769778073063,-503.0,0.00049969,31]
[404051494,1769778073129,-181.66358923,0.00049986,30]
[404051495,1769778073195,-310.95517548,0.00049986,30]
[404051496,1769778073260,-790.86076458,0.0004999,120]
[404051497,1769778073324,-676.36693828,0.0004999,120]
[404051498,1769778073389,-2101.5676,0.0004999,120]
[404051499,1769778073455,-1004.581227,0.0004999,120]
[404051500,1769778073522,-150.0,0.00049991,30]
[404051501,1769778073589,-150.0,0.00049995,30]
[404051502,1769778073660,-174.61919141,0.00049999,30]
[404051503,1769778073726,-181.08010149,0.00049999,90]
[404051504,1769778073792,-215.0738,0.00049999,30]
[404051505,1769778073861,-150.0,0.0005,40]
[404051506,1769778073927,-488.96214969,0.0005,120]
[404051507,1769778073991,-260.8553564,0.0005,30]
[404051508,1769778074058,-262.58830966,0.0005,120]
[404051509,1769778074124,-285.74741584,0.0005,120]
[404051510,1769778074191,-172.98975064,0.0005,120]
[404051511,1769778074257,-932.52520992,0.0005,120]
[404051512,1769778074324,-160.51508029,0.0005,120]
[404051513,1769778074390,-799.78026933,0.0005,30]
[404051514,1769778074455,-171.55469486,0.0005,120]
[404051515,1769778074520,-200.0,0.0005,120]
[404051516,1769778074587,-1156.28331602,0.0005,120]
[404051517,1769778074659,-225.85607745,0.0005,120]
[404051518,1769778074728,-500.0,0.0005,30]
[404051519,1769778074794,-533.75208255,0.0005,120]
[404051520,1769778074860,-182.37171775,0.0005,120]
[404051521,1769778074931,-200.0,0.0005,120]
[404051522,1769778074999,-260.43493336,0.0005,120]
[404051523,1769778075066,-160.59288745,0.0005,120]
[404051524,1769778075134,-500.0,0.0005,120]
[404051525,1769778075200,-250.0,0.0005,120]
[404051526,1769778075268,-1227.0,0.0005,120]
[404051527,1769778075336,-500.0,0.0005,120]
[404051528,1769778075404,-150.0,0.0005,120]
[404051529,1769778075471,-932.12346479,0.0005,120]
[404051530,1769778075537,-182.5614829,0.0005,120]
[404051531,1769778075607,-5415.19,0.0005,30]
[404051532,1769778075674,-1327.11,0.0005,120]
[404051533,1769778075742,-372.65,0.0005,120]
[404051534,1769778075808,-1264.22853161,0.0005,30]
[404051535,1769778075876,-1149.80814078,0.0005,30]
[404051536,1769778075944,-922.68862024,0.0005,30]
[404051537,1769778076014,-1373.2,0.0005,30]
[404051538,1769778076081,-884.81,0.0005,120]
[404051539,1769778076141,-7980.0,0.0005,120]
[404051540,1769778076209,-1000.0,0.0005,120]
[404051541,1769778076277,-1207.92625,0.0005,120]
[404051542,1769778076354,-1870.21728,0.0005,120]
[404051543,1769778076427,-2373.97487206,0.0005,120]
[404051544,1769778076500,-21952.012782,0.0005,120]
[404051545,1769778076580,-29703.78058565,0.0005,120]
[404051546,1769778076651,-292.69,0.0005,120]
[404051547,1769778076717,-477.14261065,0.0005,120]
[404051548,1769778076784,-1191.0,0.0005,120]
[404051549,1769778076851,-948.19123193,0.0005,30]
[404051550,1769778076922,-150.0,0.00050038,30]
[404051551,1769778076989,-150.0,0.00050052,30]
[404051552,1769778077055,-150.0,0.00050052,30]
[404051553,1769778077127,-181.66358923,0.00050062,30]
[404051554,1769778077196,-310.95517548,0.00050062,30]
[404051555,1769778077262,-1573.41,0.00050064,120]
[404051556,1769778077330,-150.0,0.00050078,30]
[404051557,1769778077400,-150.0,0.00050088,30]
[404051558,1769778077468,-150.0,0.00050128,30]
[404051559,1769778077534,-181.66358923,0.00050138,30]
[404051560,1769778077605,-310.95517548,0.00050138,30]
[404051561,1769778077674,-150.0,0.0005014,30]
[404051562,1769778077741,-150.0,0.0005014,30]
[404051563,1769778077809,-150.0,0.00050165,30]
[404051564,1769778077882,-150.0,0.00050181,30]
[404051565,1769778077953,-151.01,0.00050204,30]
[404051566,1769778078026,-181.66358923,0.00050215,30]
[404051567,1769778078097,-310.95517548,0.00050215,30]
[404051568,1769778078169,-150.0,0.00050217,30]
[404051569,1769778078240,-150.0,0.00050229,30]
[404051570,1769778078309,-150.0,0.00050229,30]
[404051571,1769778078379,-150.0,0.00050251,30]
[404051572,1769778078446,-150.0,0.00050262,30]
[404051573,1769778078512,-150.0,0.00050274,30]
[404051574,1769778078579,-181.66358923,0.00050291,30]
[404051575,1769778078652,-310.95517548,0.00050291,30]
[404051576,1769778078720,-151.0,0.000503,120]
[404051577,1769778078787,-150.0,0.00050307,30]
[404051578,1769778078853,-150.0,0.00050318,30]
[404051579,1769778078920,-150.0,0.00050318,30]
[404051580,1769778078988,-150.0,0.00050338,30]
[404051581,1769778079055,-150.0,0.00050367,30]
[404051582,1769778079122,-181.66358923,0.00050367,30]
[404051583,1769778079205,-310.95517548,0.00050367,30]
[404051584,1769778079288,-150.0,0.00050397,30]
[404051585,1769778079372,-153.0,0.000504,120]
[404051586,1769778079454,-150.0,0.00050406,30]
[404051587,1769778079537,-150.0,0.00050406,30]
[404051588,1769778079621,-150.0,0.00050425,30]
[404051589,1769778079703,-181.66358923,0.00050443,30]
[404051590,1769778079786,-310.95517548,0.00050443,30]
[404051591,1769778079864,-150.0,0.0005046,30]
[404051592,1769778079944,-1400.0,0.00050483,60]
[404051593,1769778080024,-150.0,0.00050486,30]
[404051594,1769778080103,-150.0,0.00050495,30]
[404051595,1769778080178,-150.0,0.00050495,30]
[404051596,1769778080254,-25000.0,0.000505,120]
[404051597,1769778080331,-50000.0,0.000505,32]
[404051598,1769778080407,-150.0,0.00050511,30]
[404051599,1769778080482,-181.66358923,0.00050519,30]
[404051600,1769778080559,-310.95517548,0.00050519,30]
[404051601,1769778080638,-150.0,0.00050553,30]
[404051602,1769778080716,-150.0,0.00050576,30]
[404051603,1769778080791,-150.0,0.00050576,30]
[404051604,1769778080867,-150.0,0.00050583,30]
[404051605,1769778080943,-150.0,0.00050583,30]
[404051606,1769778081018,-181.66358923,0.00050595,30]
[404051607,1769778081095,-310.95517548,0.00050595,30]
[404051608,1769778081170,-150.0,0.00050598,30]
[404051609,1769778081244,-731.37336912,0.000506,120]
[404051610,1769778081320,-150.0,0.00050646,30]
[404051611,1769778081397,-150.0,0.00050666,30]
[404051612,1769778081474,-181.66358923,0.00050671,30]
[404051613,1769778081549,-310.95517548,0.00050671,30]
[404051614,1769778081628,-150.0,0.00050672,30]
[404051615,1769778081703,-150.0,0.00050672,30]
[404051616,1769778081777,-1025.09,0.00050684,120]
[404051617,1769778081852,-150.0,0.00050684,30]
[404051618,1769778081929,-2025.09276614,0.0005069,120]
[404051619,1769778082000,-169.47,0.000507,120]
[404051620,1769778082075,-150.0,0.00050728,120]
[404051621,1769778082147,-150.0,0.00050739,30]
[404051622,1769778082220,-25000.0,0.0005074,120]
[404051623,1769778082290,-181.66358923,0.00050747,30]
[404051624,1769778082363,-310.95517548,0.00050747,30]
[404051625,1769778082437,-150.0,0.0005075,120]
[404051626,1769778082510,-150.0,0.00050755,30]
[404051627,1769778082584,-150.0,0.00050761,30]
[404051628,1769778082661,-150.0,0.00050761,30]
[404051629,1769778082735,-150.0,0.00050771,30]
[404051630,1769778082806,-570.63056547,0.000508,120]
[404051631,1769778082882,-2110.8,0.000508,120]
[404051632,1769778082955,-1820.61,0.000508,120]
[404051633,1769778083029,-1817.15,0.000508,120]
[404051634,1769778083104,-5202.51432896,0.000508,120]
[404051635,1769778083177,-181.66358923,0.00050823,30]
[404051636,1769778083254,-310.95517548,0.00050823,30]
[404051637,1769778083332,-150.0,0.00050832,30]
[404051638,1769778083407,-150.0,0.00050845,30]
[404051639,1769778083483,-150.0,0.00050849,30]
[404051640,1769778083558,-150.0,0.00050849,30]
[404051641,1769778083634,-150.0,0.00050858,30]
[404051642,1769778083724,-1573.41,0.0005088,120]
[404051643,1769778083807,-10000.0,0.00050899,120]
[404051644,1769778084920,-181.66358923,0.000509,30]
[404051645,1769778084995,-310.95517548,0.000509,30]
[404051646,1769778085065,-151.0,0.000509,120]
[404051647,1769778085135,-503.0,0.00050908,32]
[404051648,1769778085203,-19329.86946968,0.0005091,120]
[404051649,1769778085273,-150.0,0.00050925,30]
[404051650,1769778085340,-150.0,0.00050935,30]
[404051651,1769778085408,-150.0,0.00050938,30]
[404051652,1769778085480,-150.0,0.00050938,30]
[404051653,1769778085549,-150.0,0.00050944,30]
[404051654,1769778085617,-181.66358923,0.00050976,30]
[404051655,1769778085688,-310.95517548,0.00050976,30]
[404051656,1769778085755,-1747.876,0.00050989,82]
[404051657,1769778085825,-162.380719,0.00050999,40]
[404051658,1769778085895,-168.3888056,0.00050999,120]
[404051659,1769778085962,-207.4,0.00050999,40]
[404051660,1769778086033,-4179.24592338,0.00051,120]
[404051661,1769778086104,-46485.11135845,0.00051,120]
[404051662,1769778088316,500.0,0.00013502,2]
[404051663,1769778088444,500.0,0.00013502,2]
[404051664,1769778088593,500.0,0.00013502,2]
[404051665,1769778088740,500.0,0.00013502,2]
[404051666,1769778088828,500.0,0.00013502,2]
[404051667,1769778088955,500.0,0.00013502,2]
[404051668,1769778089064,500.0,0.00013502,2]
[404051669,1769778089114,500.0,0.00013502,2]
[404051670,1769778089172,500.0,0.00013502,2]
[404051671,1769778089219,500.0,0.00013502,2]
[404051672,1769778089295,171.12725821,0.00013502,2]